Cogmind - Beta 17 @@@ ROGUE MODE // 2026.06.26 @ 14:56:35 Player: Brananarchy Result: Destroyed by 30-DVN(R) with Subdweller Machine Gun Performance ------------- Evolutions (0) 0 Regions Visited (2) 400 Robots Destroyed (4) 20 Value Destroyed (88) 88 Prototype IDs (2) 40 Alien Tech Used (0) 0 Bonus (5000) 5000 TOTAL SCORE: 5548 Bonus ------- Prayed to X0-1V1 5000 Cogmind --------- Core Integrity 0/250 Matter 217/300 Energy 78/100 System Corruption 0% Temperature Cool (9) Movement Walking (120) Location -10/Subcaves Parts ------- > --- POWER (1) -------- (None) > --- PROPULSION (2) --- Aluminum Leg > --- UTILITY (2) ------ Small Storage Unit Self-contained Transmogrifier > --- WEAPON (2) ------- (None) > --- INVENTORY (8) ---- Protomatter-101 Trap Extractor (0/4) X0-1V1's Piety Tracker Light Assault Rifle Peak State ------------ > --- POWER ------------ Light Ion Engine > --- PROPULSION ------- Aluminum Leg Aluminum Leg > --- UTILITY ---------- Small Storage Unit Self-contained Transmogrifier > --- WEAPON ----------- Improved Assault Rifle Improved Assault Rifle > --- INVENTORY -------- Aluminum Leg Scrap Shield Trap Extractor X0-1V1's Piety Tracker Light Assault Rifle Heavy Assault Rifle Heavy Assault Rifle [Rating: 21] Favorites ----------- Power Light Ion Engine Engine Light Ion Engine Propulsion Aluminum Leg Leg Aluminum Leg Utility Small Storage Unit Device Self-contained Transmogrifier Storage Small Storage Unit Weapon Light Assault Rifle Energy Gun Medium Laser Ballistic Gun Light Assault Rifle Launcher Missile Launcher Build | -11 -10 -10 ------- Run | Yrd Mat Sub Slots Evolved . | . . . Power . | . . . Propulsion . | . . . Utility . | . . . Weapon . | . . . Parts Attached 14 | 6 3 5 Power 2 | 1 1 . Engine 2 | 1 1 . Core . | . . . Reactor . | . . . Propulsion 3 | 2 . 1 Treads . | . . . Leg 3 | 2 . 1 Wheel . | . . . Hover . | . . . Flight . | . . . Utility 2 | 1 1 . Device 1 | . 1 . Storage 1 | 1 . . Processor . | . . . Hackware . | . . . Protection . | . . . Artifact . | . . . Weapon 7 | 2 1 4 Energy Gun 1 | 1 . . Energy Cannon . | . . . Ballistic Gun 6 | 1 1 4 Ballistic Cannon . | . . . Launcher . | . . . Special Weapon . | . . . Impact Weapon . | . . . Slashing Weapon . | . . . Piercing Weapon . | . . . Special Melee Weapon . | . . . Unidentified Prototypes . | . . . Parts Lost 7 | . 1 6 Power 2 | . 1 1 Propulsion 2 | . . 2 Utility . | . . . Weapon 3 | . . 3 Highest Loss Streak 6 | . 1 6 To Critical Strikes . | . . . Average Backups 5 | 4 5 6 Power . | 1 . . Propulsion 2 | 2 4 1 Utility . | . . 1 Weapon 1 | . 1 2 Tool/Special . | . . . Unused Backups 8 | . 1 7 Power . | . . . Propulsion 3 | . 1 2 Utility 3 | . . 3 Weapon 2 | . . 2 Tool/Special . | . . . Average Slot Usage (%) 93 | . 87 97 Engine 13 | . 14 13 Leg 27 | . 28 26 Device 9 | . 2 14 Storage 14 | . 14 14 Energy Gun 5 | . 11 . Ballistic Gun 22 | . 16 27 Peak Build Rating 21 | 6 7 21 Average Rating 9 | 4 6 15 On Entrance 4 | . 6 7 Avg Prop Armor Cover (%) . | . . . Naked Turns . | . . . Heaviest Build 17 | 11 11 17 Greatest Support 20 | 20 20 20 Greatest Overweight (x) . | . . . Average Overweight (x) . | . . . Largest Inventory Capacity 8 | 8 8 8 Average Capacity 7 | 6 8 8 Most Carried 8 | 6 8 8 Average Carried 6 | 4 5 7 Final Capacity 8 | 8 8 8 Final Carried 6 | 6 6 4 Transmogrified Parts 1 | . . 1 Class Distribution -------------------- 100% | Mutant Dominant Class ---------------- Mutant | -10/Materials Mutant | -10/Subcaves Resources | -11 -10 -10 ----------- Run | Yrd Mat Sub Matter Collected 310 | 235 73 2 Remotely . | . . . Salvage Created 107 | . 107 . Parts 7 | . 7 . Haulers Intercepted . | . . . Recyclers Shooed . | . . . Parts Field Recycled . | . . . Retrieved Matter . | . . . Parts Self-Destructed . | . . . Prevented . | . . . Parts Restored . | . . . Kills | -11 -10 -10 ------- Run | Yrd Mat Sub Combat Hostiles Destroyed 4 | . 4 . Guns 4 | . 4 . Classes Destroyed 2 | . 2 . Swarmer 2 | . 2 . Grunt 2 | . 2 . Best Kill Streak 3 | . 3 . Combat Bots Only 3 | . 3 . Max Kills in Single Turn 2 | . 2 . Gunslinging 1 | . 1 . Exploded . | . . . Melee . | . . . Uniques/NPCs Destroyed . | . . . Combat | -11 -10 -10 -------- Run | Yrd Mat Sub Hostile Shots Fired 102 | . 60 42 Missed 30 | . 19 11 Hits 72 | . 41 31 Projectile 72 | . 41 31 Damage Taken 1090 | . 363 727 Core 254 | . 102 152 Absorbed by Shields . | . . . Core Remaining (%) 100 | 100 . . Volleys Fired 30 | . 24 6 Largest 2 | . 2 2 Hottest 70 | . 70 59 Shots Fired 55 | . 44 11 Gun 54 | . 44 10 Cannon . | . . . Launcher 1 | . . 1 Special . | . . . Kinetic 35 | . 25 10 Thermal 19 | . 19 . Explosive 1 | . . 1 Electromagnetic . | . . . Robot Hit Streak 8 | . 3 8 Robot Miss Streak 7 | . 7 1 Penetration Max . | . . . Secondary Targets 1 | . 1 . Max Gunslinging Chain 1 | . 1 . Shots Hit Robots 30 | . 20 10 Core Hits 12 | . 9 3 Critical Kills . | . . . Critical Parts Destroyed . | . . . Critical Strikes 2 | . 2 . Burn 2 | . 2 . Melee Attacks . | . . . Impact . | . . . Slashing . | . . . Piercing . | . . . Sneak Attacks . | . . . Combat Hostiles . | . . . Follow-up Attacks . | . . . Damage Inflicted 390 | . 220 170 Guns 327 | . 220 107 Cannons . | . . . Explosions 63 | . . 63 Melee . | . . . Ramming . | . . . Kinetic 190 | . 83 107 Thermal 137 | . 137 . Explosive 63 | . . 63 Electromagnetic . | . . . Impact . | . . . Slashing . | . . . Piercing . | . . . Highest Corruption . | . . . Average Corruption . | . . . Corruption Purged . | . . . Corruption Blocked . | . . . Overload Shots . | . . . Overflow Damage . | . . . Projectiles . | . . . Explosions . | . . . Melee . | . . . Knockbacks . | . . . Impact . | . . . Kinetic . | . . . Secondary . | . . . Self-Inflicted Damage 56 | . . 56 Shots 1 | . . 1 Rammed . | . . . Targets Rammed . | . . . Kicked . | . . . Crushed . | . . . Highest Temperature 177 | . 177 . Average Temperature 92 | . 92 . Received Heat Transfer 201 | . 84 117 Siege Activations . | . . . Martial Activations . | . . . Shielding Activations . | . . . Robots Disrupted . | . . . Combat Hostiles . | . . . Robots Corrupted . | . . . Combat Hostiles . | . . . Parts Fried . | . . . Impact Corruptions . | . . . Robots Melted . | . . . Combat Hostiles . | . . . Parts Melted . | . . . Heat Transferred 555 | . 555 . Parts Sabotaged . | . . . Parts Stolen . | . . . Parts Stripped . | . . . Power Chain Reactions . | . . . Alert | -11 -10 -10 ------- Run | Yrd Mat Sub Maximum Alert Level . | . . . Low Security (%) 100 | 100 100 . Level 1 . | . . . Level 2 . | . . . Level 3 . | . . . Level 4 . | . . . Level 5 . | . . . High Security . | . . . Max Security . | . . . Peak Influence 70 | . 70 . Initial . | . . . Average 24 | . 39 . Influence Increases 90 | . 90 . Destroy 0b10 Robot/C 80 | . 80 . Destroy Leader 10 | . 10 . Influence Decreases 90 | . 40 50 Entered New Map 25 | . . 25 Time Decay 65 | . 40 25 Squads Dispatched . | . . . Investigation . | . . . Extermination . | . . . Reinforcement . | . . . Assault . | . . . Garrison . | . . . Intercept . | . . . Searches Triggered . | . . . Construction Impeded . | . . . Haulers Reinforced . | . . . Active Scanning Responses . | . . . Cargo Convoy Interrupts . | . . . Stealth | -11 -10 -10 --------- Run | Yrd Mat Sub Distress Signals 1 | . 1 . Communications Jammed . | . . . Distress Signals . | . . . Times Spotted 15 | . 6 9 Peak Tracking Total 9 | . 4 9 Tactical Retreats . | . . . Traps | -11 -10 -10 ------- Run | Yrd Mat Sub Traps Triggered . | . . . Indirectly . | . . . Trap Hack Attempts . | . . . Triggered . | . . . Disarmed . | . . . Reprogrammed . | . . . Reused . | . . . Traps Extracted . | . . . Installed . | . . . Triggered . | . . . Machines | -11 -10 -10 ---------- Run | Yrd Mat Sub Machines Disabled . | . . . Max in Single Turn . | . . . Machines Repaired . | . . . Machines Dismantled . | . . . Machines Sabotaged . | . . . Overloaded Fab Kills . | . . . Hacking | -11 -10 -10 --------- Run | Yrd Mat Sub Machines Accessed . | . . . Terminals . | . . . Fabricators . | . . . Repair Stations . | . . . Recycling Units . | . . . Scanalyzers . | . . . Garrison Access . | . . . Total Hacks . | . . . Successful . | . . . Failed . | . . . Catastrophic . | . . . Database Lockouts . | . . . Manual 3 | . 3 . Terminals . | . . . Fabricators . | . . . Repair Stations . | . . . Recycling Units . | . . . Scanalyzers . | . . . Garrison Access . | . . . Terminal Hacks . | . . . Fabricator Hacks . | . . . Repair Station Hacks . | . . . Recycling Unit Hacks . | . . . Scanalyzer . | . . . Garrison Access Hacks . | . . . Unauthorized Hacks . | . . . Terminals . | . . . Fabricators . | . . . Repair Stations . | . . . Recycling Units . | . . . Scanalyzers . | . . . Garrison Access . | . . . Data Cores Recovered . | . . . Used . | . . . Hacking Detections . | . . . Full Trace Events . | . . . Feedback Events . | . . . Feedback Blocked . | . . . Robot Schematics Acquired . | . . . Robots Built . | . . . Authchips . | . . . Time . | . . . Total Robot Build Rating . | . . . Part Schematics Acquired . | . . . Parts Built . | . . . Authchips . | . . . Time . | . . . Total Part Build Rating . | . . . Part Studies Acquired . | . . . Parts Repaired . | . . . Time . | . . . Parts Recycled . | . . . Recycled Matter . | . . . Retrieved Matter . | . . . Retrieved Components . | . . . Parts Scanalyzed . | . . . Part Schematics Acquired . | . . . Parts Damaged . | . . . Bothacking | -11 -10 -10 ------------ Run | Yrd Mat Sub Used RIF Installer . | . . . Robots Hacked . | . . . Non-combat . | . . . Combat . | . . . Robot Hacks Applied . | . . . Relay Couplers Released . | . . . Fabnet Peak Effective % . | . . . Robots Rewired . | . . . Allies Hacked . | . . . Hacks Repelled . | . . . Allies | -11 -10 -10 -------- Run | Yrd Mat Sub Total Allies . | . . . Largest Group . | . . . Highest-Rated Group . | . . . Highest-Rated Ally . | . . . Total Orders . | . . . Ally Attacks . | . . . Total Damage . | . . . Kills . | . . . Allies Corrupted . | . . . Allies Melted . | . . . X0-1V1 Amusement Gains 6 | . 5 1 Good Acts 4 | . . 4 Bad Acts 2 | . . 2 Intel | -11 -10 -10 ------- Run | Yrd Mat Sub Active Infowar (turns) . | . . . Robot Analysis Total . | . . . Derelict Logs Recovered 1 | . . 1 Drone Launches . | . . . Drone Recoveries . | . . . Exploration | -11 -10 -10 ------------- Run | Yrd Mat Sub Turns Passed 322 | 66 108 148 Spaces Moved 172 | 46 31 95 Core 9 | 9 . . Treads . | . . . Legs 163 | 37 31 95 Wheels . | . . . Hover . | . . . Flight . | . . . Fastest Speed 50 | 50 120 120 Average Speed 116 | 106 120 120 Slowest Speed 120 | 120 120 120 Overloaded Moves . | . . . Propulsion Burnouts . | . . . Robots Hopped . | . . . Potential Cave-ins . | . . . Cave-ins Triggered . | . . . Exploration Rate (%) 7 | 4 9 9 Regions Visited 2 Branch Regions 1 Pre-discovered Areas . | . . . Known Exits Taken . | . . . Unknown Exits Taken 2 | 1 1 . Scrap Searched . | . . . Spaces Dug . | . . . Terrain Destroyed 7 | . . 7 Melee . | . . . Projectile . | . . . AOE 7 | . . 7 Terrain Rammed . | . . . Walls Destroyed . | . . . Machines Disabled . | . . . Actions | -11 -10 -10 --------- Run | Yrd Mat Sub Total 244 | 62 63 119 Wait . | . . . Move 170 | 45 30 95 Hop . | . . . Pick Up 20 | 11 4 5 Fast Attach 1 | 1 . . Attach 9 | 5 2 2 Detach . | . . . Swap 6 | . 1 5 Drop 8 | . 2 6 Fire 30 | . 24 6 Melee . | . . . Ram . | . . . Kick . | . . . Crush . | . . . Escape Stasis . | . . . Rewire . | . . . Trap . | . . . Miscellaneous . | . . . Route ------- -11/Scrapyard -10/Materials -10/Subcaves History --------- Turn | Location | Event 22 | -11/Scrapyard | Discovered new exit (range 15) 67 | -11/Scrapyard | Entered Materials 146 | -10/Materials | Discovered new exit (range 8) 174 | -10/Materials | Prayed at D.C.S.S. Altar Unit 175 | -10/Materials | Entered Subcaves 176 | -10/Subcaves | Approached by a straggling Scientist 197 | -10/Subcaves | Learned location of 1 exit from Materials 217 | -10/Subcaves | Forcibly received Sfc. Transmogifier from X0-1V1 307 | -10/Subcaves | Ambushed by swarm of Subdwellers 309 | -10/Subcaves | Ambushed by Subdwellers from Twisted Machinery 318 | -10/Subcaves | Core integrity fell below 50% 321 | -10/Subcaves | Core integrity fell below 20% 323 | -10/Subcaves | Destroyed by 30-DVN(R) with Subdweller Machine Gun Last Messages --------------- Machinery. 00309_ I5-9DK(R) angrily emerges from the Twisted Machinery. 00310_ FR-KQB(R) emerges from the Twisted Machinery. 00310_ 6U-FG0(R) emerges from the Twisted Machinery. 00312_ P3-IXB(g): "Sorry we're late! Had another grouchy Sub to deal with. Who's the new fellow?" 00312_ I5-9DK(R) suffers critical hit (Destroy). 00313_ Discarded Missile Launcher. 00315_ Aluminum Leg destroyed. 00316_ W3-ZAO(R) emerges from the Twisted Machinery. 00316_ Imp. Assault Rifle destroyed. 00316_ Lgt. Ion Engine destroyed. 00317_ Aluminum Leg destroyed. 00321_ Hvy. Assault Rifle destroyed. 00323_ X0-1V1 howls with laughter! Map ----- +----------------------------------------------------+ | ?????????????????????????????????????????????????? | | ?????????????????????????????????????????????????? | | ?????????????????????????????????????????????????? | | ?????????????????????????????????????????????????? | | ?????????????????????????????????????????????????? | | ?????????????????????????????????????????????????? | | ?????????????????????????????????????????????????? | | ?????????????????????????????????????????????????? | | ?????????????????????????????????????????????????? | | ?????????????????????????????????????????????????? | | ?????????????????????????????????????????????????? | | ?????????????????????????????????????????????????? | | ?????????????????????????????????????????????????? | | ???????????????????????????????# ????????????????? | | ???????????????????????????????< ?#??????????????? | | ?????????????????????????????? ? ### ???????????? | | ???????????????###???????????? ## ???????????? | | ???????????????# #####?????? ????????????? | | ???????????????? ##????? ????????????? | | ????????????????? ###??# % ?????????????? | | ?????????????????? ### ???????????????? | | ??????????????????# R?????????????????? | | ???????? ?????????# ## #??????????????????? | | ?????????"?######## ## ##?????????????????? | | ?###????## $# *# # R % #?????????????????? | | # #?### # ## =%= /R@[ #?????????????????? | | ### % hg RRRR #?????????????????? | | ## g [## R ##?????????????????? | | ### ## #### "# #??????????????????? | | #### #??## ##??# #######??????????????????? | | # ## #?## ##?? ##????????????????????????? | | ### #?# #?????????????????????????? | | [ ###?## #?????????????????????????? | | ## #??? ?????????????????????????? | | [ # #???# ?????????????????????????? | | # ## #### ??? #?????????????????????????? | | ## # #?# ? ??????????????????????????? | | ?###### #? ??????????????????????????? | | ??????# #? ######?????????????????????????? | | ?????? #?# #??????????????????????????????? | | ????? #?######??????????????????????????????? | | ???? ?????????????????????????????????????? | | ???? ?????????????????????????????????????? | | ??? ##????????????????????????????????????? | | ??? #?????????????????????????????????????? | | ??? ?????????????????????????????????????? | | ????? ?????????????????????????????????????? | | ????? ?????????????????????????????????????? | | ?????? ??????????????????????????????????????? | | ?????????????????????????????????????????????????? | +----------------------------------------------------+ Best States ------------- Heat Dissipation 35 Energy Generation 10 Energy Capacity 125 Matter Stores 300 Matter Capacity 300 Sight Range 16 Terrain Scan Density 10 Evasion (%) 55 Item Schematics ----------------- None Robot Schematics ------------------ None Fabricated ------------ Nothing Repaired ---------- Nothing Studied --------- None Alien Tech Used ----------------- None Achievements -------------- Chaos Is Inevitable Challenges ------------ None Game ------ Seed HybridHelicalAutohacker Manual? 0 Play Time 00:11:06 Cumulative 4.6 hours Start 2026.06.26 @ 14:47:09 End 2026.06.26 @ 14:56:35 Sessions 1 Manual Loads 0 Difficulty Rogue Special Mode None Game No. 11 Rogue 11 Adventurer 0 Explorer 0 Win Type - Total 0 Types 0/0/0/0/0/0/0/0/0/0 Lore% 6 Gallery% 7 Achievement% 10 Wizard Run 0 Options --------- Layout 1 ASCII 0 Keyboard 0 Movement Mouse Keybinds 0 Fullscreen 1 Font 32/SmallcapsGlow Map View 50x35 Zoom Use 0% Tactical HUD 1 Map Filters NONE Filters NONE Steam 1 RUN: b7bb69d7-112a-461b-8723-5c6df312f0e2